bitfinex/quotes_SOLUSD_20260224
["timestamp","ask_amount","ask_price","bid_price","bid_amount"]
[1771901640954,5.10152269,77.64,77.622,1.81331713]
[1771901641152,5.10152269,77.64,77.623,1.41331713]
[1771901643156,51.4980175,77.673,77.623,1.41331713]
[1771901643157,5.10152269,77.65,77.623,1.41331713]
[1771901643362,32.19248288,77.658,77.623,1.41331713]
[1771901644067,12.87680758,77.659,77.625,1.41331713]
[1771901644454,12.87629701,77.663,77.625,1.41331713]
[1771901644648,5.10152269,77.66,77.625,1.41331713]
[1771901645155,12.87680758,77.659,77.627,1.41331713]
[1771901647361,5.10152269,77.67,77.631,1.41331713]
[1771901647568,5.10152269,77.67,77.634,1.41331713]
[1771901648557,5.10152269,77.67,77.633,0.2]
[1771901648558,5.10152269,77.68,77.644,1.41331713]
[1771901649559,5.10152269,77.68,77.645,12.87912937]
[1771901649759,12.87349219,77.679,77.646,1.41331713]
[1771901650149,5.10152269,77.67,77.646,1.41331713]
[1771901650749,5.10152269,77.66,77.646,1.41331713]
[1771901651155,0.04178682,77.669,77.646,1.41331713]
[1771901651568,12.87349219,77.679,77.646,1.41331713]
[1771901652564,12.87349219,77.679,77.643,0.2]
[1771901652565,12.87349219,77.679,77.648,1.41331713]
[1771901653769,12.87349219,77.679,77.649,12.87846591]
[1771901654069,12.87349219,77.679,77.65,1.41331713]
[1771901654659,5.10152269,77.68,77.65,1.41331713]
[1771901654855,12.87229573,77.687,77.654,0.2]
[1771901655158,12.87229573,77.687,77.655,1.41331713]
[1771901655467,5.10152269,77.68,77.655,1.41331713]
[1771901655768,5.10152269,77.68,77.664,0.2]
[1771901657574,5.10152269,77.68,77.664,1.61331713]
[1771901659361,5.1021457,77.68,77.664,1.61331713]
[1771901661478,5.1021457,77.68,77.665,1.41331713]
[1771901662473,5.1021457,77.69,77.674,1.61331713]
[1771901662676,12.87183513,77.689,77.674,1.61331713]
[1771901663380,0.19999999,77.684,77.674,0.2]
[1771901664781,0.06072348,77.679,77.664,0.4]
[1771901665571,0.19999999,77.684,77.665,1.41331713]
[1771901665979,12.87076647,77.696,77.666,1.41331713]
[1771901666783,12.87076647,77.696,77.668,1.41331713]
[1771901667480,5.1021457,77.69,77.668,1.41331713]
[1771901668265,12.87076647,77.696,77.668,1.41331713]
[1771901668583,12.87076647,77.696,77.675,1.41331713]
[1771901669083,12.93567569,77.696,77.675,1.41331713]
[1771901669663,12.93567569,77.696,77.684,0.2]
[1771901670575,0.19999999,77.694,77.684,0.2]
[1771901671184,5.1021457,77.69,77.684,0.2]
[1771901673980,0.19999999,77.694,77.684,0.2]
[1771901674584,0.19999999,77.694,77.685,1.41331713]
[1771901674887,33.96378508,77.727,77.685,1.41331713]
[1771901674888,12.86585135,77.726,77.685,0.14216157]
[1771901675091,1.43462099,77.728,77.69,5.1021457]
[1771901675296,5.3021457,77.73,77.684,45.25429615]
[1771901675297,1.43462099,77.709,77.684,0.2]
[1771901675513,5.1021457,77.7,77.684,0.2]
[1771901675785,5.1021457,77.72,77.685,12.8724979]
[1771901675977,1.43462099,77.721,77.686,0.28432314]
[1771901676289,1.43462099,77.726,77.686,0.28432314]
[1771901676586,1.43462099,77.724,77.687,12.87216651]
[1771901676784,1.43462099,77.719,77.688,1.31072201]
[1771901677370,5.1021457,77.72,77.688,1.31072201]
[1771901677669,1.43462099,77.719,77.688,1.31072201]
[1771901681278,1.43462099,77.709,77.688,1.31072201]
[1771901682783,1.43462099,77.709,77.689,1.31072201]
[1771901683767,1.43462099,77.714,77.69,1.31072201]
[1771901684070,1.43462099,77.709,77.69,1.31072201]
[1771901692101,1.43462099,77.709,77.69,1.51072201]
[1771901693308,1.43462099,77.709,77.7,0.2]
[1771901693710,0.2,77.73,77.702,1.24588042]
[1771901693891,1.42678883,77.719,77.69,0.2]
[1771901694208,1.22678883,77.709,77.69,0.2]
[1771901697916,1.22678883,77.709,77.691,12.87150377]
[1771901700414,1.22678883,77.709,77.681,1.41059022]
[1771901700616,0.2,77.73,77.616,51.53536737]
[1771901700617,1.42678883,77.689,77.661,1.41059022]
[1771901701215,1.22678883,77.689,77.661,1.41059022]
[1771901701720,12.8686879,77.708,77.671,1.41059022]
[1771901701901,12.8686879,77.708,77.681,1.41059022]
[1771901702705,12.8686879,77.708,77.682,1.41059022]
[1771901703215,14.29547673,77.708,77.682,1.41059022]
[1771901703922,12.86801003,77.713,77.682,1.41059022]
[1771901704926,1.42678883,77.717,77.684,1.41059022]
[1771901708505,1.42678883,77.715,77.686,1.41059022]
[1771901708707,1.42678883,77.699,77.676,14.28444602]
[1771901709832,1.42678883,77.697,77.67,1.41059022]
[1771901710213,12.87034415,77.698,77.647,1.41059022]
[1771901710214,6.52893453,77.68,77.647,1.41059022]
[1771901711020,1.42678883,77.679,77.647,1.41059022]
[1771901711420,5.1021457,77.68,77.644,3.69383402]
[1771901711421,12.87285239,77.683,77.651,1.41059022]
[1771901711630,12.87100677,77.694,77.661,1.41059022]
[1771901711929,32.17262126,77.706,77.671,1.41059022]
[1771901711930,1.42678883,77.706,77.671,1.41059022]
[1771901715431,12.86918473,77.705,77.672,12.87465238]
[1771901715638,12.86918473,77.705,77.673,1.41059022]
[1771901717742,14.29531113,77.709,77.675,1.41059022]
[1771901718122,12.86786859,77.713,77.677,1.38609919]
[1771901718934,1.42680838,77.712,77.677,1.38609919]
[1771901719918,5.1021457,77.7,77.679,1.38609919]
[1771901720230,1.42680838,77.699,77.668,1.38609919]
[1771901721332,1.42680838,77.699,77.67,1.41236672]
[1771901723644,5.10028874,77.72,77.673,0.28432314]
[1771901723974,1.5052474,77.719,77.681,1.41236672]
[1771901725840,1.5052474,77.717,77.683,1.41236672]
[1771901727449,1.5052474,77.728,77.701,1.41236672]
[1771901727646,0.2,77.73,77.705,1.41236672]
[1771901727858,0.2,77.73,77.707,1.41236672]
[1771901728061,0.2,77.73,77.709,1.41236672]
[1771901728673,0.2,77.73,77.711,1.41236672]
[1771901728846,1.7052474,77.75,77.721,1.41236672]
[1771901729533,1.7052474,77.75,77.731,1.41236672]
[1771901729534,0.2,77.75,77.731,1.41236672]
[1771901729953,0.2,77.75,77.733,1.41236672]
[1771901730138,0.2,77.76,77.741,1.41236672]
[1771901730535,1.5052474,77.758,77.728,1.41236672]
[1771901731340,0.2,77.76,77.741,1.41236672]
[1771901731866,1.5052474,77.759,77.728,1.41236672]
[1771901732260,1.5052474,77.757,77.731,1.41236672]
[1771901733743,0.2,77.77,77.751,1.41236672]
[1771901733945,0.2,77.8,77.767,0.28432314]
[1771901733946,5.30028874,77.8,77.767,0.28432314]
[1771901734151,12.85363565,77.799,77.77,5.10028874]
[1771901734356,5.30028874,77.8,77.771,12.85826336]
[1771901734543,12.85363565,77.799,77.771,12.85826336]
[1771901734738,12.85363565,77.799,77.771,14.27063008]
[1771901735043,12.85363565,77.799,77.772,1.41236672]
[1771901735244,0.2,77.8,77.772,1.41236672]
[1771901735863,1.5052474,77.799,77.772,1.41236672]
[1771901736362,1.5052474,77.799,77.774,1.41236672]
[1771901737164,0.2,77.8,77.781,1.41236672]
[1771901737363,32.12320574,77.826,77.773,12.8579327]
[1771901737364,1.5052474,77.828,77.791,1.41236672]
[1771901737747,12.84868108,77.829,77.78,5.10028874]
[1771901737748,1.5052474,77.819,77.78,5.10028874]
[1771901738065,1.5052474,77.809,77.774,1.41236672]
[1771901738462,1.5052474,77.809,77.77,5.10028874]
[1771901738463,1.5052474,77.807,77.776,1.41236672]
[1771901739759,1.5052474,77.807,77.781,1.41236672]
[1771901740363,1.5052474,77.807,77.782,12.85644493]
[1771901740576,1.5052474,77.807,77.783,1.41236672]
[1771901741063,1.5052474,77.807,77.793,0.19844898]
[1771901742969,1.5052474,77.807,77.784,14.26848108]
[1771901743165,1.5052474,77.807,77.785,1.41236672]
[1771901744084,1.5052474,77.805,77.781,1.41236672]
[1771901744483,1.5052474,77.805,77.781,14.26897694]
[1771901744988,1.5052474,77.805,77.782,1.41236672]
[1771901745984,1.5052474,77.805,77.783,12.85627964]
[1771901746290,1.5052474,77.805,77.783,14.26864636]
[1771901748186,1.5052474,77.805,77.784,1.51271338]
[1771901749388,1.5052474,77.805,77.778,14.36969876]
[1771901749692,1.51957511,77.804,77.771,1.51271338]
[1771901750384,1.51957511,77.799,77.762,1.51271338]
[1771901751585,1.51957511,77.797,77.763,1.51271338]
[1771901751786,1.51957511,77.789,77.751,14.37421114]
[1771901752175,1.51957511,77.779,77.745,1.51271338]
[1771901752372,1.51957511,77.779,77.741,1.51271338]
[1771901752674,1.51957511,77.789,77.761,1.51271338]
[1771901753579,1.51957511,77.787,77.752,1.51271338]
[1771901756876,1.51957511,77.785,77.757,0.28432314]
[1771901757069,1.51957511,77.785,77.761,1.51271338]
[1771901757688,1.51957511,77.785,77.754,1.79703652]
[1771901758479,1.51957511,77.785,77.756,1.79703652]
[1771901758895,1.51957511,77.783,77.751,12.86157091]
[1771901759080,1.51957511,77.779,77.751,14.37428429]
[1771901759394,1.51957511,77.779,77.752,1.51271338]
[1771901760698,1.51957511,77.777,77.742,1.51271338]
[1771901760891,1.51957511,77.769,77.742,1.51271338]
[1771901761977,1.51957511,77.769,77.741,12.86322532]
[1771901762177,1.51957511,77.777,77.741,1.51271338]
[1771901762400,1.51957511,77.777,77.751,1.51271338]
[1771901763085,12.85743674,77.776,77.751,1.51271338]
[1771901763580,1.51957511,77.775,77.751,1.51271338]
[1771901764490,12.85776737,77.774,77.751,1.51271338]
[1771901764800,1.51957511,77.773,77.751,1.51271338]
[1771901765180,1.51957511,77.773,77.751,12.86154813]
[1771901765398,1.51957511,77.773,77.749,1.51271338]
[1771901766601,1.51957511,77.771,77.749,1.51271338]
[1771901768487,12.85875938,77.768,77.735,1.51271338]
[1771901768704,1.51957511,77.767,77.735,1.51271338]
[1771901769701,1.51957511,77.765,77.737,1.51271338]
[1771901772806,1.51957511,77.763,77.741,1.51271338]
[1771901773905,1.51957511,77.759,77.721,1.51271338]
[1771901775402,12.86041307,77.758,77.722,12.86636988]
[1771901775596,1.51957511,77.757,77.722,12.86636988]
[1771901776107,1.51957511,77.749,77.716,12.86726402]
[1771901776489,1.51957511,77.749,77.72,5.10028874]
[1771901776808,1.51957511,77.749,77.721,1.51271338]
[1771901777305,1.51957511,77.747,77.721,1.51271338]
[1771901778402,1.44142305,77.778,77.741,1.50412209]
[1771901778705,1.44142305,77.777,77.741,1.50412209]
[1771901780416,1.44142305,77.775,77.743,1.50412209]
[1771901782399,12.85776737,77.774,77.743,1.50412209]
[1771901782707,1.53095958,77.773,77.744,12.86272895]
[1771901783010,1.53095958,77.773,77.744,14.36660853]
[1771901783793,1.53095958,77.771,77.745,1.50387958]
[1771901785718,1.53095958,77.769,77.745,1.50387958]
[1771901786102,1.53095958,77.769,77.746,12.86239806]
[1771901786709,1.53095958,77.769,77.747,1.50387958]
[1771901789421,5.08965239,77.78,77.747,1.50387958]
[1771901789422,1.53095958,77.767,77.747,1.50387958]
[1771901792330,1.53095958,77.767,77.738,32.1592897]
[1771901792331,1.53095958,77.767,77.748,14.36594677]
[1771901796642,1.53095958,77.766,77.748,1.50387958]
[1771901797324,1.53095958,77.765,77.743,1.50387958]
[1771901797517,1.53095958,77.765,77.744,12.86272895]
[1771901797917,1.53095958,77.765,77.744,14.36660853]
[1771901806046,1.53095958,77.765,77.745,1.50387958]
[1771901806756,40.64341013,77.91,77.731,45.3114037]
[1771901806757,1.53095958,77.797,77.761,1.50387958]
[1771901806950,1.53095958,77.797,77.771,1.50387958]
[1771901807634,12.85314002,77.802,77.771,1.50387958]
[1771901807833,14.3840996,77.802,77.781,1.56218643]
[1771901808352,12.85314002,77.802,77.781,1.56218643]
[1771901809450,1.58875248,77.801,77.781,1.56218643]
[1771901810953,1.58875248,77.801,77.782,1.56218643]
[1771901811328,1.58875248,77.799,77.769,1.56218643]
[1771901812548,1.58875248,77.789,77.753,1.56218643]
[1771901812755,1.58875248,77.789,77.755,1.56218643]
[1771901813155,1.58875248,77.787,77.757,1.56218643]
[1771901814332,1.58875248,77.785,77.761,1.56218643]
[1771901819744,1.58875248,77.783,77.761,1.56218643]
[1771901820159,1.58875248,77.783,77.751,1.56218643]
[1771901820462,1.58875248,77.783,77.753,1.56218643]
[1771901824639,1.58875248,77.781,77.75,5.08965239]
[1771901824845,1.58875248,77.779,77.741,1.56218643]
[1771901825544,1.58875248,77.779,77.74,5.08965239]
[1771901825545,1.58875248,77.779,77.744,1.56218643]
[1771901826465,1.58875248,77.777,77.746,1.56218643]
[1771901831963,32.14111233,77.782,77.718,5.36086188]
[1771901831964,1.58875248,77.79,77.761,1.56218643]
[1771901832267,1.58875248,77.79,77.771,1.56218643]
[1771901832766,12.85478221,77.793,77.771,1.56218643]
[1771901832963,1.58875248,77.795,77.771,1.56218643]
[1771901834666,1.58875248,77.795,77.773,1.56218643]
[1771901835165,12.8519837,77.809,77.773,1.56218643]
[1771901835369,1.58875248,77.808,77.773,1.56218643]
[1771901836666,1.58875248,77.806,77.775,1.56218643]
[1771901837247,1.58875248,77.806,77.774,12.85776737]
[1771901837248,1.58875248,77.819,77.781,1.56218643]
[1771901837449,1.58875248,77.818,77.781,1.56218643]
[1771901838568,1.48436497,77.816,77.783,1.50414151]
[1771901839178,0.2,77.83,77.791,1.50414151]
[1771901839478,0.2,77.83,77.811,1.50414151]
[1771901840876,0.2,77.83,77.813,1.50414151]
[1771901841667,0.2,77.83,77.791,0.28432314]
[1771901841668,1.44125894,77.828,77.792,1.50611226]
[1771901841856,1.44125894,77.819,77.792,1.50611226]
[1771901842055,1.44125894,77.825,77.801,1.50611226]
[1771901842481,0.2,77.83,77.811,1.50611226]
[1771901842892,0.2,77.83,77.813,1.50611226]
[1771901844277,0.2,77.83,77.82,6.5864982]
[1771901844779,0.2,77.83,77.815,1.50611226]
[1771901845179,0.2,77.83,77.821,1.50611226]
[1771901845352,0.2,77.84,77.821,1.50611226]
[1771901846056,0.2,77.84,77.83,5.08038594]
[1771901846865,0.2,77.84,77.83,6.5864982]
[1771901847089,1.44125894,77.838,77.81,5.08038594]
[1771901847765,1.44125894,77.838,77.811,1.50611226]
[1771901848365,1.44125894,77.838,77.828,0.63828851]
[1771901848568,1.44125894,77.838,77.811,1.50611226]
[1771901849490,1.44125894,77.836,77.8,17.93378004]
[1771901849986,1.44125894,77.836,77.801,1.50611226]
[1771901851381,1.44125894,77.829,77.801,1.50611226]
[1771901851565,1.44125894,77.827,77.797,0.28432314]
[1771901851961,1.44125894,77.827,77.791,12.85495751]
[1771901852378,1.44125894,77.827,77.792,1.50611226]
[1771901855078,1.44125894,77.825,77.794,1.50611226]
[1771901857562,1.44125894,77.825,77.801,1.50611226]
[1771901857770,1.44125894,77.823,77.801,1.50611226]
[1771901858283,1.44125894,77.823,77.795,12.85429654]
[1771901858284,1.44125894,77.823,77.795,14.3604088]
[1771901859168,1.44125894,77.819,77.78,5.08038594]
[1771901859590,1.44125894,77.817,77.781,12.85661022]
[1771901860590,1.44125894,77.817,77.781,14.36272248]
[1771901861573,1.44125894,77.815,77.782,1.50611226]
[1771901861773,1.44125894,77.815,77.791,1.50611226]
[1771901866000,1.44125894,77.815,77.793,1.50611226]
[1771901866190,32.12376644,77.824,77.793,1.50611226]
[1771901866191,1.44125894,77.813,77.793,1.50611226]
[1771901868375,1.454351,77.811,77.793,1.50611226]
[1771901868573,1.454351,77.811,77.789,12.85513264]
[1771901868776,1.454351,77.811,77.79,1.49886322]
[1771901870191,1.454351,77.811,77.788,12.85528963]
[1771901870795,1.454351,77.811,77.788,14.35415285]
[1771901870998,1.454351,77.811,77.789,1.49886322]
[1771901873106,1.454351,77.809,77.789,1.49886322]
[1771901873708,1.454351,77.809,77.788,12.85528963]
[1771901873899,1.454351,77.809,77.788,14.35415285]
[1771901875011,1.454351,77.809,77.789,1.49886322]
[1771901875615,0.2,77.801,77.789,1.49886322]
[1771901875810,6.53473694,77.8,77.769,1.49886322]
[1771901875990,0.2,77.801,77.722,51.46504738]
[1771901875991,1.454351,77.789,77.758,1.49886322]
[1771901876807,1.454351,77.787,77.758,14.35924617]
[1771901878107,1.454351,77.769,77.743,1.49886322]
[1771901879402,1.454351,77.768,77.745,1.49886322]
[1771901879610,1.454351,77.774,77.745,1.49886322]
[1771901880096,1.454351,77.789,77.756,0.28432314]
[1771901880305,1.454351,77.788,77.761,1.49886322]
[1771901881005,1.454351,77.779,77.751,1.49886322]
[1771901882120,1.454351,77.777,77.751,14.36031897]
[1771901882902,1.654351,77.777,77.751,14.36031897]
[1771901884008,0.2,77.767,77.751,14.36031897]
[1771901884726,1.654351,77.767,77.751,14.36031897]
[1771901885032,1.654351,77.767,77.74,5.08038594]
[1771901885033,1.654351,77.767,77.745,12.86246196]
[1771901885213,1.454351,77.766,77.742,1.49886322]
[1771901885927,0.2,77.767,77.751,1.49886322]
[1771901886131,0.2,77.767,77.752,12.86140549]
[1771901886919,0.2,77.767,77.752,14.36026871]
[1771901890126,0.2,77.767,77.753,1.49886322]
[1771901891220,0.2,77.767,77.754,12.86107467]
[1771901891829,1.654351,77.767,77.754,12.86107467]
[1771901892330,0.2,77.767,77.754,12.86107467]
[1771901893218,1.654351,77.767,77.748,1.49886322]
[1771901895423,1.654351,77.767,77.749,12.86190176]
[1771901895922,1.654351,77.767,77.749,14.36076498]
[1771901896237,1.654351,77.767,77.75,1.49886322]
[1771901897020,1.454351,77.767,77.75,1.49886322]
[1771901897835,1.454351,77.767,77.751,12.86157091]
[1771901898336,1.454351,77.767,77.742,0.28432314]
[1771901898533,1.56719993,77.759,77.731,1.54244343]
[1771901900237,1.56719993,77.758,77.733,1.54244343]
[1771901900533,1.56719993,77.749,77.73,0.1]
[1771901900937,1.56719993,77.749,77.717,1.54244343]
[1771901901428,1.56719993,77.749,77.717,14.40958069]
[1771901901628,1.56719993,77.749,77.718,1.48653726]
[1771901902342,1.50185321,77.745,77.718,1.48653726]
[1771901904534,12.86272895,77.744,77.718,1.48653726]
[1771901904731,1.50185321,77.743,77.718,1.48653726]
[1771901905232,1.50185321,77.778,77.722,0.28432314]
[1771901905428,1.50185321,77.778,77.751,1.48653726]
[1771901906929,1.50185321,77.778,77.753,1.48653726]
[1771901908128,1.50185321,77.776,77.753,1.48653726]
[1771901909750,1.50185321,77.776,77.751,12.86144982]
[1771901910826,1.50185321,77.776,77.748,1.48653726]
[1771901910827,1.50185321,77.775,77.748,1.48653726]
[1771901911045,1.50185321,77.775,77.743,12.86280211]
[1771901911046,1.50185321,77.775,77.744,1.48653726]
[1771901912637,1.50185321,77.773,77.744,1.48653726]
[1771901912835,1.50185321,77.773,77.746,1.48653726]
[1771901916352,1.50185321,77.773,77.751,1.48653726]
[1771901916561,1.50185321,77.785,77.751,1.48653726]
[1771901916747,1.50185321,77.785,77.761,1.48653726]
[1771901917945,1.50185321,77.785,77.75,6.57541608]
[1771901918444,1.50185321,77.779,77.751,14.34810817]
[1771901918743,1.50185321,77.779,77.752,1.48653726]
[1771901924164,1.50185321,77.779,77.754,1.48653726]
[1771901924348,12.85710612,77.778,77.754,1.48653726]
[1771901924542,1.50185321,77.777,77.754,1.48653726]
[1771901926348,1.50185321,77.775,77.743,1.48653726]
[1771901926549,1.50185321,77.769,77.741,14.34976258]
[1771901927266,1.50185321,77.769,77.742,1.48653726]
[1771901927466,1.50185321,77.775,77.744,1.48653726]
[1771901927655,1.50185321,77.775,77.748,1.48653726]
[1771901928546,1.50185321,77.775,77.751,1.49293134]
[1771901930175,5.08887882,77.79,77.751,1.49293134]
[1771901930176,1.45307003,77.773,77.751,1.49293134]
[1771901930561,1.45307003,77.773,77.752,14.35433683]
[1771901942882,1.45307003,77.773,77.753,1.49293134]
[1771901946591,1.45307003,77.773,77.754,12.86107467]
[1771901947608,1.45307003,77.773,77.754,14.35400601]
[1771901950590,1.45307003,77.792,77.761,1.49293134]
[1771901951778,1.45307003,77.789,77.761,1.49293134]
[1771901955504,1.45307003,77.789,77.762,12.85975154]
[1771901955707,1.45307003,77.789,77.763,1.49293134]
[1771901956605,1.45307003,77.789,77.765,1.49293134]
[1771901956801,17.94409421,77.79,77.754,32.15261184]
[1771901956802,1.45307003,77.787,77.76,12.85998063]
[1771901957105,1.45307003,77.787,77.761,1.49293134]
[1771901959002,1.51959808,77.795,77.763,1.53738308]
[1771901961886,1.51959808,77.795,77.762,12.85975154]
[1771901961887,1.51959808,77.795,77.771,1.43071713]
[1771901963609,1.57915575,77.789,77.764,12.85942081]
[1771901963808,1.57915575,77.787,77.755,1.43071713]
[1771901964013,1.57915575,77.779,77.751,12.86157091]
[1771901964222,1.57915575,77.779,77.751,14.29228804]
[1771901965314,1.57915575,77.777,77.751,14.29228804]
[1771901965616,1.57915575,77.777,77.752,1.43071713]
[1771901966610,1.57915575,77.777,77.754,1.43071713]
[1771901969510,1.57915575,77.775,77.748,1.43071713]
[1771901970412,1.57915575,77.789,77.751,1.43071713]
[1771901970605,14.43328706,77.796,77.771,1.43071713]
[1771901970791,1.57915575,77.795,77.771,1.43071713]
[1771901972398,1.57915575,77.795,77.772,12.85809803]
[1771901972598,1.57915575,77.795,77.773,1.43071713]
[1771901976617,1.57915575,77.793,77.773,1.43071713]
[1771901980507,1.57915575,77.793,77.768,1.43071713]
[1771901981222,1.57915575,77.791,77.768,1.43071713]
[1771901984419,33.71384401,77.798,77.768,1.43071713]
[1771901984624,32.13468826,77.798,77.771,1.43071713]
[1771901985318,33.71384401,77.798,77.771,1.43071713]
[1771901985507,1.57915575,77.797,77.771,1.43071713]
[1771901986517,12.85413131,77.796,77.771,1.43071713]
[1771901986709,14.43328706,77.796,77.771,1.43071713]
[1771901987112,1.57915575,77.795,77.764,12.85940412]
[1771901987307,1.57915575,77.795,77.763,1.43071713]
[1771901987508,1.57915575,77.795,77.752,12.86130399]
[1771901987827,1.57915575,77.779,77.752,12.86130399]
[1771901988027,1.57915575,77.779,77.751,1.43071713]
[1771901988408,5.0888894,77.78,77.751,1.43071713]
[1771901988409,1.46727687,77.773,77.751,1.43071713]
[1771901989015,1.46727687,77.771,77.751,1.43071713]
[1771901990322,1.46727687,77.771,77.746,1.53188557]
[1771901990528,1.46727687,77.771,77.75,6.62077497]
[1771901991023,1.46727687,77.769,77.75,6.62077497]
[1771901991327,1.46727687,77.769,77.743,1.53188557]
[1771901992532,1.46727687,77.769,77.744,1.53188557]
[1771901994824,1.46727687,77.769,77.745,12.8625635]
[1771901995032,1.46727687,77.769,77.746,1.53188557]
[1771901996626,1.46727687,77.767,77.746,1.53188557]
[1771901999232,1.46727687,77.765,77.746,1.53188557]
[1771901999620,1.46727687,77.765,77.737,1.53188557]
[1771902000017,1.46727687,77.749,77.723,1.53188557]
[1771902000430,1.46727687,77.739,77.711,1.53188557]
[1771902000631,1.46727687,77.739,77.712,1.53188557]
[1771902000932,12.86206719,77.748,77.713,1.53188557]
[1771902002237,45.01723516,77.748,77.713,1.53188557]
[1771902002536,45.01723516,77.748,77.715,1.53188557]
[1771902002830,1.46727687,77.747,77.715,1.53188557]
[1771902003833,5.0888894,77.73,77.696,1.53188557]
[1771902004042,1.46727687,77.719,77.691,1.53188557]
[1771902004216,1.46727687,77.719,77.695,0.28432314]
[1771902004418,1.46727687,77.719,77.684,32.18159332]
[1771902004419,1.46727687,77.719,77.652,6.69149553]
[1771902004621,1.46727687,77.699,77.676,1.53188557]
[1771902005028,1.46727687,77.699,77.67,0.1]
[1771902005232,5.0888894,77.7,77.67,0.1]
[1771902005421,1.46727687,77.699,77.67,0.1]
[1771902006041,1.46727687,77.689,77.67,0.1]
[1771902006428,1.46727687,77.687,77.67,0.1]
[1771902006939,1.46727687,77.679,77.67,0.1]
[1771902007336,1.46727687,77.709,77.671,1.53188557]
[1771902009040,1.46727687,77.707,77.673,1.53188557]
[1771902009333,1.46727687,77.699,77.673,1.53188557]
[1771902009540,1.46727687,77.689,77.67,1.63188557]
[1771902009737,1.46727687,77.689,77.67,0.1]
[1771902009918,1.46727687,77.689,77.67,1.63188557]
[1771902010118,1.46727687,77.696,77.672,1.53188557]
[1771902010324,1.46727687,77.707,77.672,1.53188557]
[1771902010944,1.46727687,77.705,77.674,1.53188557]
[1771902011533,1.46727687,77.699,77.674,1.53188557]
[1771902012045,1.46727687,77.699,77.67,0.1]
[1771902012340,1.46727687,77.689,77.67,0.1]
[1771902013122,1.46727687,77.689,77.66,0.1]
[1771902013328,1.46727687,77.687,77.66,0.1]
[1771902013547,1.46727687,77.687,77.66,1.63188557]
[1771902013745,0.52877711,77.678,77.66,1.63188557]
[1771902015148,1.46727687,77.707,77.67,5.0888894]
[1771902015447,1.46727687,77.72,77.691,1.53188557]
[1771902015624,1.46727687,77.719,77.691,1.53188557]
[1771902016753,1.46727687,77.717,77.691,1.53188557]
[1771902016939,1.46727687,77.717,77.689,12.87172414]
[1771902017142,1.46727687,77.717,77.684,1.53188557]
[1771902018035,1.45557402,77.709,77.67,6.58505653]
[1771902018234,1.45557402,77.709,77.671,1.49616713]
[1771902018636,1.45557402,77.709,77.68,5.0888894]
[1771902018938,1.45557402,77.707,77.677,1.49616713]
[1771902019247,1.45557402,77.699,77.677,1.49616713]
[1771902019548,1.45557402,77.707,77.68,5.0888894]
[1771902019943,1.45557402,77.707,77.677,14.369902]
[1771902020138,1.45557402,77.707,77.677,1.49616713]
[1771902020651,1.45557402,77.707,77.68,5.0888894]
[1771902020953,1.45557402,77.705,77.677,14.36985057]
[1771902021134,1.45557402,77.705,77.678,1.49616713]
[1771902022332,1.45557402,77.705,77.673,12.87447459]
[1771902022333,1.45557402,77.705,77.569,31.51793175]
[1771902022534,3.69383402,77.655,77.601,2.70064237]
[1771902022734,5.0888894,77.61,77.59,1e-08]
[1771902022935,5.0888894,77.61,77.521,38.67]
[1771902022936,103.02810865,77.649,77.522,316.03931782]
[1771902023133,5.0888894,77.62,77.57,5.0888894]
[1771902023338,5.0888894,77.62,77.523,15.39935917]
[1771902023339,12.87796837,77.652,77.61,5.0888894]
[1771902023545,5.0888894,77.64,77.591,5.36086188]
[1771902023743,12.87796837,77.652,77.611,0.28432314]
[1771902023947,5.0888894,77.62,77.592,1.54577993]
[1771902024357,45.07288929,77.652,77.601,1.59913793]
[1771902024532,12.87717551,77.657,77.621,1.59913793]
[1771902024736,5.0888894,77.65,77.621,1.59913793]
[1771902024958,12.87846591,77.649,77.621,1.59913793]
[1771902025370,5.07841351,77.658,77.644,1.53340142]
[1771902025546,1.60158649,77.677,77.65,11.39480079]
[1771902027951,1.60158649,77.677,77.646,0.02887552]
[1771902028255,1.60158649,77.675,77.646,0.02887552]
[1771902028456,1.60158649,77.675,77.65,11.39480079]
[1771902029754,12.87380953,77.678,77.529,12.87398939]
[1771902029755,1.60158649,77.673,77.64,11.39480079]
[1771902029959,1.60158649,77.659,77.621,0.28432314]
[1771902030164,1.60158649,77.659,77.601,12.88643187]
[1771902030461,1.60158649,77.659,77.62,11.39480079]
[1771902034454,1.60158649,77.675,77.65,11.39480079]
[1771902034837,12.87432087,77.674,77.65,11.39480079]
[1771902035037,1.60158649,77.673,77.65,11.39480079]
[1771902035855,1.60158649,77.673,77.641,0.28432314]
[1771902036052,1.60158649,77.673,77.64,11.39480079]
[1771902036964,1.60158649,77.673,77.65,11.39480079]
[1771902037262,0.14216157,77.715,77.66,11.39480079]
[1771902037469,1.60158649,77.699,77.66,11.39480079]
[1771902038162,11.39480079,77.69,77.66,11.39480079]
[1771902038357,1.60158649,77.689,77.651,0.28432314]
[1771902038946,1.60158649,77.687,77.66,11.39480079]